Cogmind - Beta 16.1 @@@ ROGUE MODE // 2026.06.21 @ 22:28:36 Player: JuustuToug Result: Escaped! Performance ------------- Evolutions (9) 4500 Regions Visited (21) 4200 Robots Destroyed (356) 1780 Value Destroyed (13600) 13600 Prototype IDs (71) 1420 Alien Tech Used (4) 800 Bonus (6978) 6978 TOTAL SCORE: 33278 Bonus ------- High Alert Combat Kills 973 Follower Combat Kills 229 Registered with UFD 300 Met Optimus in HQ 500 Met Data Miner 300 Met Warlord at Base 500 MAIN.C Attacked Warlord 500 Warlord Defense Kills 1378 Win 3000 Friendly Fire -702 Cogmind --------- Core Integrity 986/1600 Matter 208/300 Energy 137/150 System Corruption 17% Temperature Cool (9) Movement Flying (29) Location To Epsilon Eridani Parts ------- > --- POWER (3) -------- Micro Fission Core > --- PROPULSION (7) --- Advanced Surge Thruster (fused) Advanced Surge Thruster Q-thruster Q-thruster Q-thruster > --- UTILITY (12) ----- Advanced Visual Processing Unit Advanced Sensor Array Advanced Signal Interpreter Advanced Transmission Jammer Improved Hacking Suite Improved System Shield Advanced System Shield > --- WEAPON (3) ------- (None) > --- INVENTORY (5) ---- Terrabomb Nova Cannon Heavy Shock Bomb Launcher Peak State ------------ > --- POWER ------------ Light Quantum Reactor Light Quantum Reactor Improved Quantum Reactor > --- PROPULSION ------- Advanced Myomer Leg Advanced Myomer Leg Biometal Leg Centrium Leg High-density Centrium Leg > --- UTILITY ---------- High-capacity Storage Unit Machine Analyzer Enhanced Optical Array Experimental Sensor Array Advanced Signal Interpreter Improved Terrain Scan Processor Heavy Armor Plating Centrium Medium Armor Plating Graphene Brace System Shield Improved Corruption Screen > --- WEAPON ----------- Enhanced Nova Cannon Gamma Bomb Array Thermal Lance > --- INVENTORY -------- Improved Ion Engine Centrium Wheel Centrium Wheel Matter Compressor Advanced Point Defense System High-powered Tractor Beam Dimensional Node Initializer Transdimensional Reconstructor Transdimensional Reconstructor Terrabomb Terrabomb Wave Gun Compact HERF Cannon Vortex Driver Mini Smartbomb Launcher Sigix Terminator RU-N14's Throwing Claymores v3 Core Stripper [Rating: 174] Favorites ----------- Power Cooled Antimatter Reactor Engine Heavy Ion Engine Power Core Light Nuclear Core Reactor Cooled Antimatter Reactor Propulsion Light Treads Treads Light Treads Leg Centrium Leg Wheel Centrium Wheel Hover Unit Linear Gravjet Flight Unit Field Propulsion Array Utility Large Storage Unit Device Seismic Detector Storage Large Storage Unit Processor Core Analyzer Hackware Hacking Suite Protection Improved Light Armor Plating Weapon Advanced Beam Cannon Energy Gun Beamcaster Energy Cannon Advanced Beam Cannon Ballistic Gun Helical Railgun Ballistic Cannon Heavy Hardcell Cannon Launcher Long-range Missile Launcher Special Weapon RU-N14's Throwing Claymores v3 Slashing Weapon Power Sword Piercing Weapon Thermal Lance Build | -11 -10 -9 -9 -9 -9 -6 -6 -6 -6 -5 -5 -5 -5 -5 -4 -4 -4 -3 -3 -2 -1 ------- Run | Yrd Mat Mat Sto Rec Scr Fac Low Low Dat Pro Fac Upp Upp War Pro Fac Arm Res Qua Res Acc Slots Evolved 18 | . . 2 . . . 6 . . . . 2 . . . . 2 . 2 . 2 2 Power 2 | . . . . . . 1 . . . . . . . . . . . . . 1 . Propulsion 5 | . . 1 . . . 1 . . . . . . . . . 1 . . . . 2 Utility 10 | . . 1 . . . 4 . . . . 2 . . . . 1 . 1 . 1 . Weapon 1 | . . . . . . . . . . . . . . . . . . 1 . . . Parts Attached 303 | 7 14 14 12 3 12 35 4 2 . 1 8 2 5 16 3 16 28 27 13 36 45 Power 51 | 1 2 2 4 . 2 4 2 . . . 1 . . 2 . 1 6 6 2 10 6 Engine 22 | 1 1 2 4 . 2 2 . . . . . . . 1 . . . 1 1 5 2 Core 4 | . 1 . . . . . . . . . . . . . . 1 1 . . . 1 Reactor 25 | . . . . . . 2 2 . . . 1 . . 1 . . 5 5 1 5 3 Propulsion 75 | 2 3 3 5 2 3 11 . 1 . . 1 . . 2 . 4 6 4 3 12 13 Treads 24 | 2 3 3 5 2 3 6 . . . . . . . . . . . . . . . Leg 27 | . . . . . . 5 . 1 . . 1 . . 2 . 4 6 4 3 1 . Wheel 2 | . . . . . . . . . . . . . . . . . . . . 2 . Hover 2 | . . . . . . . . . . . . . . . . . . . . . 2 Flight 20 | . . . . . . . . . . . . . . . . . . . . 9 11 Utility 118 | 2 5 4 1 1 3 13 2 . . 1 5 2 5 6 2 11 7 12 7 8 21 Device 69 | 1 3 1 1 . 2 7 2 . . 1 4 1 3 4 1 7 4 9 3 2 13 Storage 11 | 1 2 1 . . . 1 . . . . . . 1 1 . 1 1 . 2 . . Processor 18 | . . . . . 1 2 . . . . 1 1 1 1 1 2 . 3 1 2 2 Hackware 8 | . . . . . . 1 . . . . . . . . . . . . . 3 4 Protection 12 | . . 2 . 1 . 2 . . . . . . . . . 1 2 . 1 1 2 Artifact . | . . . . . . . . . . . . . . . . . . . . . . Weapon 59 | 2 4 5 2 . 4 7 . 1 . . 1 . . 6 1 . 9 5 1 6 5 Energy Gun 9 | . 1 1 . . 1 . . . . . 1 . . 2 . . . 1 . 2 . Energy Cannon 17 | . 2 2 2 . 1 2 . . . . . . . 1 . . 2 2 . 1 2 Ballistic Gun 9 | 2 1 . . . 1 . . . . . . . . 2 . . 1 1 . . 1 Ballistic Cannon 5 | . . . . . . 2 . . . . . . . . . . 1 . . 2 . Launcher 13 | . . 2 . . 1 2 . 1 . . . . . . . . 4 1 1 . 1 Special Weapon 3 | . . . . . . . . . . . . . . 1 1 . 1 . . . . Impact Weapon . | . . . . . . . . . . . . . . . . . . . . . . Slashing Weapon 1 | . . . . . . . . . . . . . . . . . . . . . 1 Piercing Weapon 2 | . . . . . . 1 . . . . . . . . . . . . . 1 . Special Melee Weapon . | . . . . . . . . . . . . . . . . . . . . . . Unidentified Prototypes 40 | . . 2 1 . . 10 1 . . . . . . 9 . . 6 1 7 3 . Corrupted Parts 5 | . . . 1 . . . . . . . . . . . . . 2 . . . 2 System Corruption 32 | . . . 3 . . . . . . . . . . . . . 17 . . . 12 Parts Lost 121 | . 6 1 . . . 12 3 . . . 3 . . 1 . 8 7 22 6 34 18 Power 25 | . 1 . . . . 2 1 . . . . . . . . 1 4 4 1 8 3 Propulsion 31 | . 3 . . . . 4 1 . . . . . . . . . . 5 . 12 6 Utility 47 | . 1 1 . . . 5 . . . . 1 . . 1 . 7 3 10 2 10 6 Weapon 18 | . 1 . . . . 1 1 . . . 2 . . . . . . 3 3 4 3 Highest Loss Streak 16 | . 4 1 . . . 10 3 . . . 3 . . 1 . 3 3 9 3 16 16 To Critical Strikes 1 | . . . . . . . . . . . . . . . . . . . . 1 . Average Backups 13 | 1 11 15 15 14 13 13 11 10 11 11 12 13 13 14 14 16 19 19 16 12 4 Power . | . . 1 1 1 . 1 1 1 1 1 1 1 1 1 1 . . 1 . . . Propulsion 3 | 1 5 4 4 4 3 2 1 1 1 1 2 4 4 3 3 4 7 5 . . . Utility 3 | . 3 4 3 2 3 4 3 3 4 4 3 2 3 4 4 4 2 3 3 2 1 Weapon 5 | . . 4 6 7 5 5 5 4 5 5 5 6 5 5 6 6 8 9 8 5 1 Tool/Special . | . . . . . . . . . . . . . . . . . . . . . . Unused Backups 60 | . 4 12 6 . 4 4 . . . 1 1 1 1 5 . 5 6 1 . 5 4 Power 6 | . 1 1 1 . . 2 . . . . . . . . . . . 1 . . . Propulsion 20 | . 3 6 1 . . . . . . . 1 . . 4 . 1 3 . . . 1 Utility 15 | . . 4 2 . 2 1 . . . 1 . . . . . 3 . . . 2 . Weapon 15 | . . . 2 . 2 1 . . . . . 1 1 1 . 1 3 . . 2 1 Tool/Special 4 | . . 1 . . . . . . . . . . . . . . . . . 1 2 Average Slot Usage (%) 86 | . 99 96 99 100 97 90 66 78 68 79 81 81 81 77 76 76 87 89 85 68 71 Engine 4 | . 8 7 11 11 10 10 . . . . . . . 1 . . . . . 2 2 Reactor 5 | . . . . . . 2 9 13 13 13 11 11 11 5 5 4 8 7 2 5 7 Treads 12 | . 28 33 33 33 33 20 . . . . . . . . . . . . . . . Leg 10 | . . . . . . 4 19 20 20 20 17 17 17 17 17 20 21 21 22 12 . Device 12 | . 14 11 11 11 4 10 13 19 20 19 19 11 11 10 11 11 17 19 13 6 20 Storage 6 | . 14 11 11 11 10 6 6 6 6 6 5 5 5 5 5 5 5 4 4 2 . Processor 10 | . . . . . 10 10 6 6 6 6 10 16 17 17 17 18 15 19 22 18 9 Protection 4 | . . 7 11 11 6 5 2 . . . 2 5 4 5 5 5 7 1 2 3 1 Energy Cannon 9 | . 8 20 21 22 21 10 6 11 1 12 6 5 5 1 . . 4 4 2 . . Ballistic Gun 1 | . 17 . . . . . . . . . . . . . 10 5 . . 5 . . Piercing Weapon 1 | . . . . . . 1 . . . . 3 5 4 3 . 3 5 4 4 2 3 Peak Build Rating 174 | 7 12 22 22 21 32 111 112 105 105 107 118 116 117 135 137 153 134 149 166 174 145 Average Rating 80 | 5 9 16 18 20 27 62 95 104 96 106 113 112 112 120 132 143 125 132 139 117 123 On Entrance 79 | . 7 10 17 21 21 30 90 96 105 105 107 110 112 113 135 132 100 133 79 140 76 Avg Prop Armor Cover (%) 17 | . . . . . 42 . . . . . . . . . . . 13 6 7 16 10 Naked Turns . | . . . . . . . . . . . . . . . . . . . . . . Heaviest Build 133 | 14 52 56 40 40 44 120 101 86 86 86 101 100 102 103 104 119 100 110 101 133 62 Greatest Support 152 | 40 40 62 63 63 73 100 100 100 100 100 100 100 100 110 110 140 150 150 152 152 67 Greatest Overweight (x) 1 | . 1 . . . . 1 1 . . . 1 . 1 1 . . 1 . . 1 . Average Overweight (x) . | . . . . . . . . . . . . . . . . . . . . . . Largest Inventory Capacity 20 | 8 20 20 15 15 15 15 15 15 15 15 15 15 15 15 15 20 20 20 20 20 5 Average Capacity 15 | 7 15 16 15 15 14 15 15 15 15 15 15 15 15 15 15 17 20 20 20 15 5 Most Carried 20 | 3 16 20 15 15 15 15 15 15 15 15 15 15 15 15 15 19 20 20 20 20 5 Average Carried 14 | 1 11 15 14 14 14 14 14 14 15 15 14 14 14 14 14 16 19 18 16 14 4 Final Capacity 20 | 8 20 15 15 15 15 15 15 15 15 15 15 15 15 15 15 20 20 20 20 5 5 Final Carried 20 | 3 16 15 15 15 15 15 15 15 15 15 15 15 15 15 15 19 19 15 20 5 3 Class Distribution -------------------- 70% | Mutant 11% | Scavenger-Mutant 10% | Scavenger-Assassin Dominant Class ---------------- Mutant | -10/Materials Mutant | -9/Materials Scavenger-Mutant | -9/Storage Mutant | -9/Recycling Mutant | -9/Scraptown Mutant | -6/Factory Mutant | -6/Lower Caves Mutant | -6/Lower Caves Mutant | -6/Data Miner Mutant | -5/Proximity Caves Mutant | -5/Factory Mutant | -5/Upper Caves Mutant | -5/Upper Caves Mutant | -5/Warlord Scavenger-Mutant | -4/Proximity Caves Scavenger-Mutant | -4/Factory Scavenger-Assassin | -4/Armory Scavenger-Assassin | -3/Research Scavenger-Assassin | -3/Quarantine Scavenger-Assassin | -2/Research Hacker-Ninja | -1/Access Resources | -11 -10 -9 -9 -9 -9 -6 -6 -6 -6 -5 -5 -5 -5 -5 -4 -4 -4 -3 -3 -2 -1 ----------- Run | Yrd Mat Mat Sto Rec Scr Fac Low Low Dat Pro Fac Upp Upp War Pro Fac Arm Res Qua Res Acc Matter Collected 9733 | 205 404 350 409 217 214 624 713 722 . 394 1054 79 470 245 185 473 740 797 323 450 665 Remotely 78 | . . . . . . . . . . . 78 . . . . . . . . . . Salvage Created 15024 | 165 674 622 1349 248 70 1671 288 316 . 334 1005 10 364 588 128 1358 1427 1751 365 1497 794 Parts 640 | 13 40 34 86 8 2 70 8 2 . 13 39 . 12 19 6 61 49 60 22 64 32 Haulers Intercepted 15 | . 2 2 4 . . 1 . . . . 1 . . . . 1 . . . 2 2 Recyclers Shooed 11 | . 2 . . . . 1 . . . . 1 . . . . . . 2 1 3 1 Parts Field Recycled . | . . . . . . . . . . . . . . . . . . . . . . Retrieved Matter . | . . . . . . . . . . . . . . . . . . . . . . Parts Self-Destructed 41 | . . . . . . . 9 4 . 12 . . 10 . 6 . . . . . . Prevented 2 | . . . . . . . 2 . . . . . . . . . . . . . . Parts Restored 1 | . . . . . . . . . . . . 1 . . . . . . . . . Broken 1 | . . . . . . . . . . . . 1 . . . . . . . . . Kills | -11 -10 -9 -9 -9 -9 -6 -6 -6 -6 -5 -5 -5 -5 -5 -4 -4 -4 -3 -3 -2 -1 ------- Run | Yrd Mat Mat Sto Rec Scr Fac Low Low Dat Pro Fac Upp Upp War Pro Fac Arm Res Qua Res Acc Combat Hostiles Destroyed 230 | . 13 11 25 3 1 25 10 3 . 11 8 . 12 11 6 23 24 20 1 21 2 Melee 29 | . . . . . . 2 1 . . . 3 . 2 . . 6 6 8 . 1 . Guns 18 | . 7 . . . . . . . . . . . . 5 2 2 . 2 . . . Cannons 68 | . 6 8 19 3 . 11 5 2 . 3 3 . . 3 . 1 1 1 . 1 1 AOE 85 | . . 3 6 . 1 12 4 1 . 8 . . 9 . 4 10 7 2 . 17 1 Classes Destroyed 27 | 2 6 2 2 . 1 4 1 1 . 1 . . 1 2 . 1 . . 2 . 1 Worker 36 | . 2 . 3 . . 6 . . . . 3 . . . . 3 . 3 1 15 . Builder 18 | . . . 1 . . 3 . . . . . . . . . 2 . 2 1 9 . Tunneler 12 | 4 . . . . . . . . . . 4 . . . . 1 . 1 . 1 1 Hauler 15 | . 2 2 4 . . 1 . . . . 1 . . . . 1 . . . 2 2 Recycler 21 | 1 . 1 1 1 . 2 . . . . 2 . . . . 1 . 3 2 4 3 Minesweeper 1 | . . . . . . . . . . . . . 1 . . . . . . . . Mechanic 6 | . . . 1 . . 3 . . . . . . . . . 1 . . . 1 . Operator 6 | . 1 . 2 . . . . . . . . . . . . . . . . . 3 Drone 3 | . . . . . . . . . . 2 . . . . . . . . . 1 . Watcher 11 | . 1 1 . . . 1 . . . . 3 . . . . 1 1 . . 2 1 Swarmer 59 | . 3 3 8 . . 6 5 . . 9 1 . 4 . 4 9 4 3 . . . Cutter 2 | . . . . . . . . . . . . . . . . . . . . . 2 Saboteur 4 | . . . . . . . . . . . . . . 2 . . 2 . . . . Grunt 54 | . 10 3 10 . . 5 3 2 . . . . 5 3 1 . . . . 12 . Brawler 4 | . . . . . . 1 . 1 . . . . 2 . . . . . . . . Duelist 3 | . . 1 . . . 1 . . . . . . . 1 . . . . . . . Researcher 1 | . . . . . . . . . . . . . . . . . . . 1 . . Sentry 34 | . . 4 7 3 . 1 1 . . . 1 . 1 . . 5 7 2 . 2 . Specialist 8 | . . . . . . 4 . . . . . . . 1 . . 3 . . . . Hunter 20 | . . . . . . 3 . . . . 2 . . 1 . 5 2 4 . 3 . Programmer 32 | . . . . . . 4 . . . . 4 . . 1 1 3 6 11 . 2 . Behemoth 2 | . . . . . . . . . . . . . . . . 1 . . . 1 . Executioner 2 | . . . . . . . . . . . . . . 2 . . . . . . . Alpha 7 1 | . . . . . . . . . . . . . . . . . . . 1 . . Scrapper 1 | . . . . . 1 . . . . . . . . . . . . . . . . Decomposer 1 | . . . . . . . . . . . . 1 . . . . . . . . . Packrat 1 | . . . . . . . . 1 . . . . . . . . . . . . . Samaritan 3 | . . . . . . . . 2 . . . . 1 . . . . . . . . Mutant 1 | . . . . . . . 1 . . . . . . . . . . . . . . Best Kill Streak 26 | 5 5 4 7 2 1 16 4 3 . 5 3 . 7 6 4 14 9 8 3 26 2 Combat Bots Only 11 | . 5 4 6 1 1 7 4 3 . 5 3 . 7 6 4 11 8 7 1 11 1 Max Kills in Single Turn 26 | 1 1 2 3 1 1 4 4 1 . 3 1 1 3 1 4 7 3 3 1 26 1 Gunslinging . | . . . . . . . . . . . . . . . . . . . . . . Exploded 11 | . . 2 3 . 1 3 4 1 . 3 . . 3 . 4 5 3 2 . 11 1 Melee 1 | . . . . . . 1 1 . . . 1 . 1 . . 1 1 1 . 1 . Uniques/NPCs Destroyed . | . . . . . . . . . . . . . . . . . . . . . . Combat | -11 -10 -9 -9 -9 -9 -6 -6 -6 -6 -5 -5 -5 -5 -5 -4 -4 -4 -3 -3 -2 -1 -------- Run | Yrd Mat Mat Sto Rec Scr Fac Low Low Dat Pro Fac Upp Upp War Pro Fac Arm Res Qua Res Acc Hostile Shots Fired 2169 | . 165 47 94 14 4 206 118 16 . 16 84 . 28 26 15 214 256 340 94 305 127 Missed 694 | . 29 18 26 4 2 52 36 8 . 6 24 . 12 14 5 86 105 100 11 102 54 Deflected 3 | . . . . . . . . . . . . . . . . . 3 . . . . Hits 1475 | . 136 29 68 10 2 154 82 8 . 10 60 . 16 12 10 128 151 240 83 203 73 Melee 29 | . . . . . . . . . . . . . . . . . 5 . . . 24 Projectile 1446 | . 136 29 68 10 2 154 82 8 . 10 60 . 16 12 10 128 146 240 83 203 49 AOE 2 | . . . . . . . . . . . . . . . . . . . . . 2 Critical Strikes 91 | . 3 2 1 1 . 5 1 1 . . 4 . . 2 . 11 4 23 9 12 12 Actively Blocked 36 | . . . . . . . . . . . . . . . . . . 20 9 7 . Part Disruptions 4 | . . . . . . . . . . . . . . . . . . 2 1 1 . Damage Taken 27803 | . 1322 380 864 149 39 2974 1049 156 . 201 1047 . 355 446 196 2765 2266 4944 1951 4563 2136 Core 4077 | . 193 30 75 29 . 323 121 20 . . 68 . 16 83 . 137 159 813 275 1121 614 Absorbed by Shields 181 | . . . . . . . . . . . . . 57 124 . . . . . . . Redirected to Shielding 227 | . . . . . . . . . . . . . . . . . 44 18 . . 165 Ignored by Resistances 102 | . . . . . . . . . . . . . . . . 102 . . . . . Regen/Repaired (Parts) 397 | . . . 115 . . . . . . . . . . 282 . . . . . . . Core Remaining (%) 52 | 100 22 . . . 66 . . . . 45 . . . . 83 . 74 . 14 9 61 Volleys Fired 609 | 12 79 33 65 10 4 64 21 14 . 13 12 . 25 27 13 30 51 46 30 46 14 Largest 2 | 2 2 2 2 2 2 2 2 2 . 2 2 . 1 2 2 2 1 2 2 2 1 Hottest 218 | 40 120 120 136 136 136 175 153 175 . 175 175 . 68 143 76 76 120 218 158 201 120 Shots Fired 934 | 24 138 64 123 22 5 83 29 29 . 22 26 3 25 54 25 46 48 71 33 50 14 Gun 301 | 24 109 . . . . . . . . . . . . 27 24 43 2 39 13 19 1 Cannon 542 | . 29 62 115 22 3 62 27 28 . 18 26 3 14 27 . . 30 31 20 14 11 Launcher 82 | . . 2 8 . 2 21 2 1 . 4 . . 11 . . . 13 1 . 15 2 Special 9 | . . . . . . . . . . . . . . . 1 3 3 . . 2 . Kinetic 234 | 24 92 . . . . . 9 . . . . . . . 24 43 4 21 13 3 1 Thermal 598 | . 46 62 115 22 3 62 18 28 . 18 26 3 14 54 . . 28 40 20 28 11 Explosive 45 | . . . . . . 7 2 1 . 4 . . 11 . 1 3 7 1 . 8 . Electromagnetic 57 | . . 2 8 . 2 14 . . . . . . . . . . 9 9 . 11 2 Robot Hit Streak 35 | 8 10 35 14 12 1 13 12 17 . 18 9 2 8 14 11 7 2 6 5 12 3 Robot Miss Streak 6 | 2 6 2 2 1 4 2 2 1 . . 3 . 1 3 1 5 5 3 2 3 2 Penetration Max 2 | . . . . . . . . . . . . . . . . 2 . . . . . Secondary Targets 3 | . 2 . . . . . . . . . . . . . . 1 . . . . . Max Gunslinging Chain 1 | . 1 . . . . . . . . . . . . . . 1 . . . . . Shots Hit Robots 675 | 15 91 48 68 16 1 44 19 17 . 13 39 3 22 40 14 52 31 69 20 32 21 Core Hits 502 | 5 35 20 41 3 1 66 29 7 . 15 15 1 27 22 9 39 47 25 7 74 14 Critical Kills 17 | . 1 . . . . . . . . . . . . 3 . 3 3 4 2 1 . Critical Parts Destroyed . | . . . . . . . . . . . . . . . . . . . . . . Critical Strikes 25 | . 1 . . . . . 1 . . . . . . 4 1 3 3 4 2 5 1 Burn 3 | . . . . . . . . . . . . . . 1 . . . . . 2 . Meltdown 14 | . . . . . . . . . . . . . . 3 . 2 3 4 1 1 . Destroy 3 | . 1 . . . . . . . . . . . . . . 1 . . 1 . . Blast 1 | . . . . . . . 1 . . . . . . . . . . . . . . Sever 1 | . . . . . . . . . . . . . . . 1 . . . . . . Impale 3 | . . . . . . . . . . . . . . . . . . . . 2 1 Melee Attacks 283 | . . . . . . 11 . . . . 33 1 6 . . 36 31 67 21 19 58 Thermal 215 | . . . . . . 11 . . . . 33 1 6 . . 36 31 67 21 9 . Impact . | . . . . . . . . . . . . . . . . . . . . . . Slashing 8 | . . . . . . . . . . . . . . . . . . . . . 8 Piercing 60 | . . . . . . . . . . . . . . . . . . . . 10 50 Sneak Attacks 36 | . . . . . . 3 . . . . 9 1 2 . . 3 . 5 2 5 6 Combat Hostiles 1 | . . . . . . . . . . . . . . . . . . . . 1 . Follow-up Attacks . | . . . . . . . . . . . . . . . . . . . . . . Damage Inflicted 63063 | 172 1067 1004 1772 338 136 4833 1330 721 . 1167 2712 184 2308 890 1129 4701 3513 4316 1006 27985 1779 Guns 3736 | 172 726 . . . . . . . . . . . . 454 492 794 . 584 148 345 21 Cannons 7822 | . 332 842 1329 329 21 810 891 524 . 429 409 36 206 436 . . 246 525 169 201 87 Explosions 37811 | . . 161 440 . 115 3386 241 197 . 728 . . 1613 . 592 1902 1413 476 . 26337 210 Melee 13100 | . . . . . . 620 . . . . 2303 148 489 . . 1877 1784 2731 676 1011 1461 Ramming 283 | . 9 1 3 9 . 17 198 . . 10 . . . . . 23 . . 13 . . Kinetic 3020 | 172 572 . . . . . 600 . . . . . . . 492 794 . 221 148 . 21 Thermal 44560 | . 486 875 1362 329 21 1550 291 524 . 429 2712 184 695 890 . 2566 2075 3390 845 25101 235 Explosive 9289 | . . . . . . 2179 241 197 . 728 . . 1613 . 592 1213 613 476 . 1437 . Electromagnetic 3787 | . . 128 407 . 115 1087 . . . . . . . . . . 755 229 . 1004 62 Impact . | . . . . . . . . . . . . . . . . . . . . . . Slashing 352 | . . . . . . . . . . . . . . . 45 105 70 . . 91 41 Piercing 1772 | . . . . . . . . . . . . . . . . . . . . 352 1420 Highest Corruption 30 | . . . 7 7 . 4 5 5 5 5 8 8 8 8 2 4 30 21 21 . 17 Average Corruption 6 | . . . 5 7 . 1 4 5 5 5 6 8 8 8 1 3 7 8 21 . 7 Corruption Purged . | . . . . . . . . . . . . . . . . . . . . . . Corruption Blocked 5 | . . . . . . . . . . . . . . . . . . . . 5 . Effects 275 | . . . 22 35 . 5 19 19 3 9 28 13 20 2 1 8 30 30 26 . 5 Message Errors 68 | . . . 4 12 . 3 6 7 1 4 7 1 4 . . 1 5 6 6 . 1 Matter Fused 71 | . . . 5 7 . 1 7 4 . 1 6 4 7 . . 3 9 11 5 . 1 Heat Flow Errors 22 | . . . . 4 . . 1 1 . . . 1 2 1 . . 5 2 4 . 1 Energy Discharges 34 | . . . 6 4 . . 2 1 1 3 4 1 2 . 1 2 1 2 4 . . Parts Rejected 10 | . . . . 1 . 1 1 . . . 1 . 1 . . . 1 2 2 . . Parts Fused 4 | . . . . . . . . . . . . . . 1 . 1 1 . . . 1 Data Loss (minor) 23 | . . . 3 1 . . 1 4 1 . 4 2 2 . . . 2 2 1 . . Data Loss (major) 17 | . . . 1 2 . . . . . 1 3 1 2 . . . 3 3 . . 1 Misfires 15 | . . . 2 3 . . . 2 . . 2 3 . . . . . 1 2 . . Alerts 4 | . . . . . . . 1 . . . 1 . . . . 1 . 1 . . . Misdirections 1 | . . . . . . . . . . . . . . . . . . . 1 . . Weapon Failures 6 | . . . 1 1 . . . . . . . . . . . . 3 . 1 . . Overload Shots . | . . . . . . . . . . . . . . . . . . . . . . Overflow Damage 7611 | . . . 38 . . 225 144 68 . 108 777 134 201 . . 478 214 552 19 4561 92 Projectiles 297 | . . . 10 . . 33 85 68 . 46 17 . 2 . . . 4 . 19 . 13 Explosions 4711 | . . . 28 . . 82 59 . . 62 . . 37 . . 247 16 79 . 4101 . Melee 2603 | . . . . . . 110 . . . . 760 134 162 . . 231 194 473 . 460 79 Knockbacks 4 | . . . . . . . 4 . . . . . . . . . . . . . . Impact 1 | . . . . . . . 1 . . . . . . . . . . . . . . Kinetic 3 | . . . . . . . 3 . . . . . . . . . . . . . . Secondary . | . . . . . . . . . . . . . . . . . . . . . . Self-Inflicted Damage 499 | . . 39 92 . . 108 60 . . 47 . . . . . . 28 35 . 36 54 Shots 23 | . . 2 5 . . 4 1 . . 1 . . . . . . 3 1 . 4 2 Rammed 8 | . 4 1 . 2 . 1 . . . . . . . . . . . . . . . Targets Rammed 46 | . 4 1 1 3 . 4 29 . . 1 . . . . . 2 . . 1 . . Kicked 36 | . . . . . . 3 29 . . 1 . . . . . 2 . . 1 . . Crushed 2 | . . . 1 1 . . . . . . . . . . . . . . . . . Highest Temperature 314 | . 160 150 300 254 39 264 134 288 . 261 32 76 86 314 . 18 223 198 160 291 191 Average Temperature 79 | . 69 60 82 92 17 65 54 99 . 89 6 76 74 149 . 13 47 90 41 98 85 Received Heat Transfer 3077 | . 453 114 183 72 24 288 300 90 . . 18 . 63 80 9 285 300 108 177 432 81 Effects 1 | . . . 1 . . . . . . . . . . . . . . . . . . Interference 1 | . . . 1 . . . . . . . . . . . . . . . . . . Siege Activations . | . . . . . . . . . . . . . . . . . . . . . . Martial Activations 1 | . . . . . . . . . . . . . . . . 1 . . . . . Total Turns 26 | . . . . . . . . . . . . . . . . 26 . . . . . Longest Duration 26 | . . . . . . . . . . . . . . . . 26 . . . . . Shielding Activations 1 | . . . . . . . . . . . . . . . . . 1 . . . . Total Turns 6 | . . . . . . . . . . . . . . . . . 6 . . . . Longest Duration 6 | . . . . . . . . . . . . . . . . . 6 . . . . Robots Disrupted 1 | . . . . . . . . . . . . . . . . . . . . 1 . Combat Hostiles . | . . . . . . . . . . . . . . . . . . . . . . Robots Corrupted 7 | . . . . . . 1 . . . . . . . . . . 4 1 . 1 . Combat Hostiles 6 | . . . . . . . . . . . . . . . . . 4 1 . 1 . Parts Fried 17 | . . . . . . 6 . . . . . . . . . . 5 2 . 4 . Impact Corruptions . | . . . . . . . . . . . . . . . . . . . . . . Robots Melted 25 | . . . . . . . . . . . 3 . 1 3 . 4 6 6 1 1 . Combat Hostiles 24 | . . . . . . . . . . . 2 . 1 3 . 4 6 6 1 1 . Parts Melted 112 | . . 7 3 3 1 4 . 1 . 1 12 . . 7 . 16 21 29 3 4 . Heat Transferred 30698 | . 1053 1826 2677 592 37 1910 444 720 . 583 3450 138 970 1291 . 3550 3062 4883 1468 1820 224 Parts Sabotaged 2 | . . . . . . . . . . . . . . . . . 2 . . . . Parts Stolen . | . . . . . . . . . . . . . . . . . . . . . . Parts Stripped . | . . . . . . . . . . . . . . . . . . . . . . Power Chain Reactions 9 | . . 2 1 . 2 3 . . . . . . . . . . 1 . . . . Alert | -11 -10 -9 -9 -9 -9 -6 -6 -6 -6 -5 -5 -5 -5 -5 -4 -4 -4 -3 -3 -2 -1 ------- Run | Yrd Mat Mat Sto Rec Scr Fac Low Low Dat Pro Fac Upp Upp War Pro Fac Arm Res Qua Res Acc Maximum Alert Level 4 | . . . 2 1 . 2 . . . . . . . . . 3 3 2 1 4 3 Low Security (%) 55 | 100 100 100 28 98 . 57 . . . . 100 . . . . 34 . 2 81 50 . Level 1 22 | . . . 48 1 . 18 . . . . . . . . . 48 23 96 18 9 . Level 2 12 | . . . 23 . . 23 . . . . . . . . . 3 73 . . . 7 Level 3 7 | . . . . . . . . . . . . . . . . 13 3 . . 4 92 Level 4 2 | . . . . . . . . . . . . . . . . . . . . 35 . Level 5 . | . . . . . . . . . . . . . . . . . . . . . . High Security . | . . . . . . . . . . . . . . . . . . . . . . Max Security . | . . . . . . . . . . . . . . . . . . . . . . Peak Influence 1325 | 15 163 183 438 206 . 479 . . . . 181 . . . . 890 710 402 238 1325 843 Initial 794 | . 3 50 37 166 . . . . . . 181 . . . . 16 429 357 218 54 794 Average 265 | 3 58 82 295 138 . 187 . . . . 103 . . . . 278 526 293 164 511 746 Influence Increases 10572 | 25 434 429 869 331 . 930 250 70 . 220 658 . 367 235 140 1271 911 729 178 1922 603 Destroy 0b10 Robot/C 4720 | . 260 220 500 60 . 500 180 60 . 180 280 . 320 220 120 460 480 400 40 400 40 Destroy 0b10 Robot/NC 650 | 25 30 20 60 5 . 80 . . . 20 60 . 5 . . 50 5 45 20 175 50 Destroy Leader 992 | . 76 66 138 . . 104 10 10 . 20 68 . 20 . 20 124 132 110 . 88 6 Allied During Kill 35 | . . . . . . . . . . . 13 . 22 . . . . . . . . Trap Triggered on 0b10 10 | . . . . . . 10 . . . . . . . . . . . . . . . Successful Hack 354 | . 23 11 44 26 . . . . . . 50 . . . . 56 7 24 . 77 36 Select Force Hacks 360 | . 30 30 60 240 . . . . . . . . . . . . . . . . . Disable Machine 960 | . 15 45 60 . . 105 . . . . 15 . . . . 285 105 45 90 135 60 Destroy Structure 1591 | . . 7 7 . . 71 . . . . 22 . . . . 266 182 90 28 792 126 Advance Influence 150 | . . . . . . . . . . . 150 . . . . . . . . . . Partial Spotted 60 | . . 15 . . . 15 . . . . . . . . . . . . . . 30 Lose Combat Pursuer 690 | . . 15 . . . 45 60 . . . . . . 15 . 30 . 15 . 255 255 Influence Decreases 9735 | 20 318 462 529 720 39 497 565 188 . 170 623 85 214 229 273 420 1108 1021 468 696 1090 Entered New Map 2497 | . 2 71 51 262 39 . 161 23 . . 19 32 . 153 159 10 448 323 170 44 530 Time Decay 5848 | 20 286 381 478 458 . 377 374 165 . 170 514 53 214 66 114 330 440 478 238 312 380 Lost Part 1180 | . 30 10 . . . 120 30 . . . 30 . . 10 . 80 70 220 60 340 180 Lost Ally 60 | . . . . . . . . . . . 60 . . . . . . . . . . Purge Threat 150 | . . . . . . . . . . . . . . . . . 150 . . . . Squads Dispatched 65 | . 4 3 4 . . 13 . . . . 3 . 1 . . 7 7 4 1 6 12 Investigation 12 | . 2 1 4 . . . . . . . . . . . . 1 . 1 . 3 . Extermination 23 | . . . . . . 4 . . . . 3 . . . . 2 3 3 1 2 5 Reinforcement 20 | . 2 2 . . . 6 . . . . . . . . . 3 1 . . 1 5 Assault 9 | . . . . . . 3 . . . . . . 1 . . . 3 . . . 2 Garrison 1 | . . . . . . . . . . . . . . . . 1 . . . . . Intercept . | . . . . . . . . . . . . . . . . . . . . . . Searches Triggered . | . . . . . . . . . . . . . . . . . . . . . . Data Miner Redirects 3 | . . . . . . . . . . . . . . . . . 1 1 . 1 . Construction Impeded 4 | . . 1 . . . 1 . . . . . . . . . 1 . . . 1 . Haulers Reinforced 1 | . . . . . . 1 . . . . . . . . . . . . . . . Active Scanning Responses . | . . . . . . . . . . . . . . . . . . . . . . Cargo Convoy Interrupts 1 | . . . . . . 1 . . . . . . . . . . . . . . . Stealth | -11 -10 -9 -9 -9 -9 -6 -6 -6 -6 -5 -5 -5 -5 -5 -4 -4 -4 -3 -3 -2 -1 --------- Run | Yrd Mat Mat Sto Rec Scr Fac Low Low Dat Pro Fac Upp Upp War Pro Fac Arm Res Qua Res Acc Distress Signals 18 | . 2 1 1 . . . . . . . . . . . . 4 3 1 . 4 2 Communications Jammed 10 | . . . . . . 9 . . . . . . . . . 1 . . . . . Distress Signals 9 | . . . . . . 9 . . . . . . . . . . . . . . . Times Spotted 452 | . 24 14 31 2 4 43 16 4 . 9 14 . 14 61 6 35 40 32 16 50 37 Peak Tracking Total 23 | . 5 4 8 1 3 9 7 4 . 5 3 . 9 13 4 10 7 7 16 23 16 Tactical Retreats 26 | . . 1 . . . 2 2 . . . . . . 1 . 2 1 3 . 5 9 ECM-based Alert Blocks 15 | . . . . . . . . . . . . . . . . . 1 2 . . 12 Traps | -11 -10 -9 -9 -9 -9 -6 -6 -6 -6 -5 -5 -5 -5 -5 -4 -4 -4 -3 -3 -2 -1 ------- Run | Yrd Mat Mat Sto Rec Scr Fac Low Low Dat Pro Fac Upp Upp War Pro Fac Arm Res Qua Res Acc Traps Triggered 11 | . 1 2 4 . . . . . . . . . . . . . 1 1 . 2 . Indirectly 3 | . . . 1 . . . . . . . . . . . . . 1 . . 1 . Trap Hack Attempts . | . . . . . . . . . . . . . . . . . . . . . . Triggered . | . . . . . . . . . . . . . . . . . . . . . . Disarmed . | . . . . . . . . . . . . . . . . . . . . . . Reprogrammed . | . . . . . . . . . . . . . . . . . . . . . . Reused 1 | . . . . . . 1 . . . . . . . . . . . . . . . Traps Extracted 2 | . . . . . . . . . . . . . 2 . . . . . . . . Installed 1 | . . . . . . 1 . . . . . . . . . . . . . . . Triggered 1 | . . . . . . 1 . . . . . . . . . . . . . . . Most Traps Carried 2 | . . . . . 1 1 . . . . . . 2 2 2 2 2 2 2 2 . Machines | -11 -10 -9 -9 -9 -9 -6 -6 -6 -6 -5 -5 -5 -5 -5 -4 -4 -4 -3 -3 -2 -1 ---------- Run | Yrd Mat Mat Sto Rec Scr Fac Low Low Dat Pro Fac Upp Upp War Pro Fac Arm Res Qua Res Acc Machines Disabled 72 | . 1 3 4 . 3 7 1 . . . 1 . 2 . 2 19 7 3 6 9 4 Max in Single Turn 5 | . 1 2 2 . 2 3 1 . . . 1 . 2 . 2 5 1 1 1 4 1 Garrison Access 3 | . . . 1 . . 1 . . . . . . . . . . . . . . 1 Energy Cycler 1 | . . . . . . . . . . . . . . . . . . . . . 1 Machines Repaired . | . . . . . . . . . . . . . . . . . . . . . . Machines Dismantled . | . . . . . . . . . . . . . . . . . . . . . . Machines Sabotaged . | . . . . . . . . . . . . . . . . . . . . . . Overloaded Fab Kills . | . . . . . . . . . . . . . . . . . . . . . . Hacking | -11 -10 -9 -9 -9 -9 -6 -6 -6 -6 -5 -5 -5 -5 -5 -4 -4 -4 -3 -3 -2 -1 --------- Run | Yrd Mat Mat Sto Rec Scr Fac Low Low Dat Pro Fac Upp Upp War Pro Fac Arm Res Qua Res Acc Machines Accessed 84 | . 7 4 11 13 3 4 1 1 3 . 7 . . 1 . 3 7 2 1 6 10 Terminals 43 | . 6 3 7 5 . 1 . . . . 2 . . . . 2 5 . 1 4 7 Fabricators 8 | . . . . . . 2 . . . . 2 . . . . 1 2 . . . 1 Repair Stations 5 | . . . 1 . . . . . . . 2 . . . . . . 1 . 1 . Recycling Units 13 | . 1 1 2 8 . . . . . . 1 . . . . . . . . . . Scanalyzers 4 | . . . . . . 1 . . . . . . . . . . . 1 . 1 1 Garrison Access 2 | . . . 1 . . . . . . . . . . . . . . . . . 1 Total Hacks 231 | . 23 14 31 28 25 10 1 1 25 . 12 . . 1 . 9 13 3 2 14 19 Successful 142 | . 15 5 23 21 25 6 1 1 25 . 3 . . 1 . 5 3 1 . 4 3 Failed 89 | . 8 9 8 7 . 4 . . . . 9 . . . . 4 10 2 2 10 16 Catastrophic 31 | . 4 . 1 2 . . . . . . 5 . . . . 1 3 1 1 6 7 Database Lockouts . | . . . . . . . . . . . . . . . . . . . . . . Manual 92 | . 17 10 19 20 . 5 . . . . 7 . . 1 . 4 3 . . 2 4 Terminals 123 | . 21 13 24 19 . 2 . . . . 3 . . . . 7 10 . 2 8 14 Fabricators 16 | . . . . . . 5 . . . . 5 . . . . 2 3 . . . 1 Repair Stations 11 | . . . 4 . . . . . . . 3 . . . . . . 1 . 3 . Recycling Units 15 | . 2 1 2 9 . . . . . . 1 . . . . . . . . . . Scanalyzers 11 | . . . . . . 3 . . . . . . . . . . . 2 . 3 3 Garrison Access 2 | . . . 1 . . . . . . . . . . . . . . . . . 1 Terminal Hacks 81 | . 6 1 8 6 25 . 1 1 25 . . . . 1 . 2 3 . . 1 1 Record 24 | . . . . . 18 . . . 6 . . . . . . . . . . . . Part Schematic 14 | . . . 1 1 . . . . 12 . . . . . . . . . . . . Robot Schematic 4 | . . . . . . . . . 4 . . . . . . . . . . . . Robot Analysis 7 | . . . . 1 6 . . . . . . . . . . . . . . . . Prototype ID Bank 9 | . 2 . 2 2 . . . . 3 . . . . . . . . . . . . Open Door 4 | . . . 1 . . . 1 1 . . . . . 1 . . . . . . . Level Access Points 1 | . . . . . . . . . . . . . . . . . . . . . 1 Branch Access Points 2 | . 1 . 1 . . . . . . . . . . . . . . . . . . Terminal Index 4 | . 1 . 1 1 . . . . . . . . . . . 1 . . . . . Alert Level 1 | . . . . . . . . . . . . . . . . . 1 . . . . Unreport Threat 1 | . . . . . . . . . . . . . . . . . 1 . . . . Hauler Manifests 1 | . . . . . . . . . . . . . . . . 1 . . . . . Registered Components 5 | . 1 1 1 1 . . . . . . . . . . . . 1 . . . . Zone Layout 3 | . 1 . 1 . . . . . . . . . . . . . . . . 1 . Proto ID Catalog 1 | . . . . . 1 . . . . . . . . . . . . . . . . Fabricator Hacks 5 | . . . . . . 2 . . . . 1 . . . . 1 . . . . 1 Network Status 2 | . . . . . . 2 . . . . . . . . . . . . . . . Build 3 | . . . . . . . . . . . 1 . . . . 1 . . . . 1 Repair Station Hacks 5 | . . . 4 . . . . . . . 1 . . . . . . . . . . Scan Component 3 | . . . 2 . . . . . . . 1 . . . . . . . . . . Repair 2 | . . . 2 . . . . . . . . . . . . . . . . . . Recycling Unit Hacks 1 | . 1 . . . . . . . . . . . . . . . . . . . . Retrieve Components 1 | . 1 . . . . . . . . . . . . . . . . . . . . Scanalyzer 6 | . . . . . . 3 . . . . . . . . . . . 1 . 2 . Retrieve Study 6 | . . . . . . 3 . . . . . . . . . . . 1 . 2 . Garrison Access Hacks 2 | . . . 1 . . . . . . . . . . . . . . . . . 1 Seal Access 2 | . . . 1 . . . . . . . . . . . . . . . . . 1 Unauthorized Hacks 42 | . 8 4 10 15 . 1 . . . . 1 . . . . 2 . . . 1 . Terminals 28 | . 7 3 8 7 . 1 . . . . . . . . . 2 . . . . . Assimilate 1 | . . . . . . 1 . . . . . . . . . . . . . . . Botnet 10 | . 2 2 2 2 . . . . . . . . . . . 2 . . . . . Skim 17 | . 5 1 6 5 . . . . . . . . . . . . . . . . . Fabricators 1 | . . . . . . . . . . . 1 . . . . . . . . . . Liberate 1 | . . . . . . . . . . . 1 . . . . . . . . . . Repair Stations 1 | . . . . . . . . . . . . . . . . . . . . 1 . Mechanics 1 | . . . . . . . . . . . . . . . . . . . . 1 . Recycling Units 12 | . 1 1 2 8 . . . . . . . . . . . . . . . . . Tunnel 12 | . 1 1 2 8 . . . . . . . . . . . . . . . . . Scanalyzers . | . . . . . . . . . . . . . . . . . . . . . . Garrison Access . | . . . . . . . . . . . . . . . . . . . . . . Data Cores Recovered 1 | . . . 1 . . . . . . . . . . . . . . . . . . Used 1 | . . . 1 . . . . . . . . . . . . . . . . . . Hacking Detections 60 | . 7 3 7 5 . 3 . . . . 7 . . . . 3 7 2 1 6 9 Full Trace Events 2 | . . 1 . . . . . . . . . . . . . . . . . 1 . Feedback Events . | . . . . . . . . . . . . . . . . . . . . . . Feedback Blocked . | . . . . . . . . . . . . . . . . . . . . . . Robot Schematics Acquired 6 | . . . . . . . . . 4 . . . . . . . . . 2 . . Robots Built 2 | . . . . . . . . . . . 2 . . . . . . . . . . Authchips . | . . . . . . . . . . . . . . . . . . . . . . Time 40 | . . . . . . . . . . . 40 . . . . . . . . . . Total Robot Build Rating 2 | . . . . . . . . . . . 2 . . . . . . . . . . Part Schematics Acquired 18 | . . . 1 1 . . . . 12 . . . . . . . . . 4 . . Parts Built 1 | . . . . . . . . . . . . . . . . 1 . . . . . Authchips . | . . . . . . . . . . . . . . . . . . . . . . Time 115 | . . . . . . . . . . . . . . . . 69 . . . . 46 Total Part Build Rating 9 | . . . . . . . . . . . . . . . . 9 . . . . . Part Studies Acquired 6 | . . . . . . 3 . . . . . . . . . . . 1 . 2 . Parts Repaired 2 | . . . 2 . . . . . . . . . . . . . . . . . . Time 52 | . . . 52 . . . . . . . . . . . . . . . . . . Parts Recycled . | . . . . . . . . . . . . . . . . . . . . . . Recycled Matter . | . . . . . . . . . . . . . . . . . . . . . . Retrieved Matter . | . . . . . . . . . . . . . . . . . . . . . . Retrieved Components 5 | . 5 . . . . . . . . . . . . . . . . . . . . Parts Scanalyzed . | . . . . . . . . . . . . . . . . . . . . . . Part Schematics Acquired . | . . . . . . . . . . . . . . . . . . . . . . Parts Damaged . | . . . . . . . . . . . . . . . . . . . . . . Bothacking | -11 -10 -9 -9 -9 -9 -6 -6 -6 -6 -5 -5 -5 -5 -5 -4 -4 -4 -3 -3 -2 -1 ------------ Run | Yrd Mat Mat Sto Rec Scr Fac Low Low Dat Pro Fac Upp Upp War Pro Fac Arm Res Qua Res Acc Used RIF Installer . | . . . . . . . . . . . . . . . . . . . . . . Robots Hacked . | . . . . . . . . . . . . . . . . . . . . . . Non-combat . | . . . . . . . . . . . . . . . . . . . . . . Combat . | . . . . . . . . . . . . . . . . . . . . . . Robot Hacks Applied . | . . . . . . . . . . . . . . . . . . . . . . Relay Couplers Released 2 | . . . . . . 2 . . . . . . . . . . . . . . . Machine Destruction 2 | . . . . . . 2 . . . . . . . . . . . . . . . Fabnet Peak Effective % . | . . . . . . . . . . . . . . . . . . . . . . Robots Rewired 3 | . . . . . . . . . . . . . 2 . . . . . . 1 . Allies Hacked . | . . . . . . . . . . . . . . . . . . . . . . Hacks Repelled . | . . . . . . . . . . . . . . . . . . . . . . Allies | -11 -10 -9 -9 -9 -9 -6 -6 -6 -6 -5 -5 -5 -5 -5 -4 -4 -4 -3 -3 -2 -1 -------- Run | Yrd Mat Mat Sto Rec Scr Fac Low Low Dat Pro Fac Upp Upp War Pro Fac Arm Res Qua Res Acc Total Allies 9 | . . . . . . . . . . . 6 . 2 . . . . . . 1 . Largest Group 3 | . . . . . . . . . . . 3 1 2 1 . . . . . 1 . Highest-Rated Group 99 | . . . . . . . . . . . 99 99 99 30 . . . . . 40 . Highest-Rated Ally 99 | . . . . . . . . . . . 99 99 99 30 . . . . . 40 . Total Orders 2 | . . . . . . . . . . . . . . . 2 . . . . . . EXPLORE 1 | . . . . . . . . . . . . . . . 1 . . . . . . RETURN 1 | . . . . . . . . . . . . . . . 1 . . . . . . Ally Attacks 34 | . . . . . . . . . . . 13 . 20 1 . . . . . . . Total Damage 1179 | . . . . . . . . . . . 550 . 629 . . . . . . . . Kills 11 | . . . . . . . . . . . 7 . 4 . . . . . . . . Allies Corrupted 1 | . . . . . . . . . . . . . 1 . . . . . . . . Allies Melted 4 | . . . . . 4 . . . . . . . . . . . . . . . . Intel | -11 -10 -9 -9 -9 -9 -6 -6 -6 -6 -5 -5 -5 -5 -5 -4 -4 -4 -3 -3 -2 -1 ------- Run | Yrd Mat Mat Sto Rec Scr Fac Low Low Dat Pro Fac Upp Upp War Pro Fac Arm Res Qua Res Acc Active Infowar (turns) 16290 | 14 365 701 659 1093 921 1072 867 800 98 514 1403 361 673 1079 444 751 1089 1238 500 760 888 Optics 4613 | . . . . . . . . . . . . . . . . 429 1089 1238 500 744 613 Sensors 3499 | . . . . . . . . . . . . . . . . 286 678 734 418 597 786 IFF 2807 | . . . . . . . . . . 443 1006 356 594 408 . . . . . . . Terrain 679 | . . . . . . . . . . . . . . . . . . 52 . . 627 Structural 3207 | . . . . . 14 67 867 800 98 247 390 . . . . 167 . 541 16 . . Seismic 8479 | 14 365 701 659 1093 907 857 . . . . 986 357 597 853 362 97 . . . . 631 T.N.C. 6792 | . . . . . . 425 . . . . . 338 673 1079 444 751 1089 1238 500 255 . Machine Analysis 339 | . . . . . . . . . . . . . . . . . . . . 339 . Cloaking 129 | . . . . . . . . . . . . . . . . . . . . . 129 Jamming 792 | . . . . . . 100 . . . . . . . . . 284 . . . . 408 ECM 2223 | . . . . . . . . . . . . . . . . 2 672 900 . . 649 Robot Analysis Total 7 | . . . . 1 6 . . . . . . . . . . . . . . . . Derelict Logs Recovered 6 | . . . . . . . 1 2 . 1 . . 2 . . . . . . . . Drone Launches 3 | . . . . . . . . . . . . . . . 3 . . . . . . Drone Recoveries 3 | . . . . . . . . . . . . . . . 3 . . . . . . Exploration | -11 -10 -9 -9 -9 -9 -6 -6 -6 -6 -5 -5 -5 -5 -5 -4 -4 -4 -3 -3 -2 -1 ------------- Run | Yrd Mat Mat Sto Rec Scr Fac Low Low Dat Pro Fac Upp Upp War Pro Fac Arm Res Qua Res Acc Turns Passed 20533 | 115 1147 905 1222 1157 2485 1898 870 820 98 515 1403 393 673 1079 444 751 1089 1238 500 838 893 Spaces Moved 13266 | 44 423 471 532 692 1432 977 649 640 83 356 1003 270 471 650 322 413 564 566 267 712 1729 Core 189 | 5 . . . . 154 . . . . . . . . . . . . . . 24 6 Treads 4142 | 39 423 471 532 692 1278 707 . . . . . . . . . . . . . . . Legs 6776 | . . . . . . 270 649 640 83 356 1003 270 471 650 322 413 564 566 267 252 . Wheels 66 | . . . . . . . . . . . . . . . . . . . . 66 . Hover . | . . . . . . . . . . . . . . . . . . . . . . Flight 2093 | . . . . . . . . . . . . . . . . . . . . 370 1723 Fastest Speed 22 | 50 160 155 155 160 50 110 105 110 110 110 110 110 110 103 103 107 100 105 110 34 22 Average Speed 114 | 147 200 156 157 160 146 145 111 110 110 110 110 110 113 108 103 109 121 114 113 71 31 Slowest Speed 240 | 160 240 160 160 160 160 190 180 110 110 110 180 110 180 186 103 214 170 120 114 120 50 Overloaded Moves 20 | . . . . . . . . . . . . . . . . 7 . . . . 13 Propulsion Burnouts . | . . . . . . . . . . . . . . . . . . . . . . Robots Hopped 10 | . . . . . . . . . . . . . . . . . . . . 2 8 Potential Cave-ins 15 | . . . . . . 2 . . . . . . . . . 6 . 2 3 2 . Cave-ins Triggered 1 | . . . . . . 1 . . . . . . . . . . . . . . . Teleports 3 | . . . . . . . . . . . . . . . . . . . 1 2 . Exploration Rate (%) 51 | 3 83 38 77 98 84 33 73 70 69 60 17 48 66 70 57 17 45 22 45 27 38 Regions Visited 21 Branch Regions 13 Pre-discovered Areas 22 | . 2 1 2 9 5 . 1 . 1 1 . . . . . . . . . . . Known Exits Taken 13 | . 1 1 1 1 . 1 1 . . 1 . . . . 1 1 1 1 1 1 . Unknown Exits Taken 8 | 1 . . . . 1 . . 1 1 . 1 1 1 1 . . . . . . . Scrap Searched 22 | . . . . . 9 . 2 2 . 1 . 2 4 . 2 . . . . . . Spaces Dug 229 | . . . . . . 29 14 23 . 67 4 . . . 7 9 6 16 8 19 27 Terrain Destroyed 1206 | . . 6 . . . 75 36 32 . 70 11 1 106 . 31 178 108 49 15 447 41 Melee 54 | . . . . . . 4 . . . . 4 . . . . 4 1 12 . 6 23 Projectile 156 | . . . . . . 28 7 11 . 3 7 1 . . 15 16 18 23 15 6 6 AOE 996 | . . 6 . . . 43 29 21 . 67 . . 106 . 16 158 89 14 . 435 12 Terrain Rammed . | . . . . . . . . . . . . . . . . . . . . . . Walls Destroyed . | . . . . . . . . . . . . . . . . . . . . . . Machines Disabled . | . . . . . . . . . . . . . . . . . . . . . . Actions | -11 -10 -9 -9 -9 -9 -6 -6 -6 -6 -5 -5 -5 -5 -5 -4 -4 -4 -3 -3 -2 -1 --------- Run | Yrd Mat Mat Sto Rec Scr Fac Low Low Dat Pro Fac Upp Upp War Pro Fac Arm Res Qua Res Acc Total 17239 | 69 596 577 787 718 1817 1350 759 731 89 452 1224 364 566 974 405 611 869 982 398 947 1954 Wait 1964 | 4 40 5 127 . 306 159 40 63 3 70 138 79 31 235 61 77 125 232 41 81 47 Move 13225 | 43 422 470 531 691 1431 976 648 639 82 355 1002 269 470 649 321 412 563 565 267 707 1712 Hop 10 | . . . . . . . . . . . . . . . . . . . . 2 8 Pick Up 221 | 3 25 20 6 1 27 25 4 3 . . 12 3 1 10 1 16 19 11 10 13 11 Fast Attach 197 | 7 2 8 4 1 8 17 1 . 2 1 3 2 5 13 . 7 21 13 10 27 45 Attach 131 | . 5 4 . . 3 18 7 6 . . 6 1 . 3 . 7 13 15 12 17 14 Detach 65 | . 1 1 . . 2 10 2 3 . 1 1 . . 4 . 1 6 7 5 6 15 Swap 230 | . 8 15 38 9 7 33 4 1 . 10 12 4 15 10 8 11 17 14 1 8 5 Drop 251 | . 10 20 15 3 29 32 3 2 2 1 5 5 5 22 1 12 23 12 1 19 29 Fire 609 | 12 79 33 65 10 4 64 21 14 . 13 12 . 25 27 13 30 51 46 30 46 14 Melee 279 | . . . . . . 11 . . . . 33 1 6 . . 36 31 67 21 19 54 Ram . | . . . . . . . . . . . . . . . . . . . . . . Kick 34 | . . . . . . 2 29 . . 1 . . . . . 2 . . . . . Crush 10 | . 4 1 1 3 . 1 . . . . . . . . . . . . . . . Escape Stasis 1 | . . . . . . 1 . . . . . . . . . . . . . . . Rewire 11 | . . . . . . . . . . . . . 8 1 . . . . . 2 . Trap 1 | . . . . . . 1 . . . . . . . . . . . . . . . Miscellaneous . | . . . . . . . . . . . . . . . . . . . . . . Route ------- -11/Scrapyard -10/Materials (discovered 4 exits: *Mat x2 / *Min / Sub) -9/Materials (discovered 6 exits: *Mat x3 / *Min / *Sto x2) -9/Storage (discovered 2 exits: Mat / *Rec) -9/Recycling (discovered 2 exits: [*Fac] / *Scr) -9/Scraptown (discovered 2 exits: *Fac x2) -6/Factory (discovered 6 exits: *Fac x4 / *Low x2) -6/Lower Caves -6/Lower Caves (discovered 2 exits: *Fac / *Dat) -6/Data Miner -5/Proximity Caves -5/Factory (discovered 3 exits: Fac x2 / [*Upp]) -5/Upper Caves -5/Upper Caves -5/Warlord -4/Proximity Caves -4/Factory (discovered 6 exits: *Res x3 / Ext x2 / *Arm) -4/Armory -3/Research (discovered 2 exits: *Res / *Qua) -3/Quarantine -2/Research -1/Access To Epsilon Eridani History --------- Turn | Location | Event 15 | -11/Scrapyard | Discovered new exit (range 16) 116 | -11/Scrapyard | Entered Materials 312 | -10/Materials | Build established: Mutant 569 | -10/Materials | Learned location of 1 exit from Recycling 602 | -10/Materials | Identified exit to Materials 602 | -10/Materials | Identified exit to Subcaves 626 | -10/Materials | Learned location of Subcaves (-10) 641 | -10/Materials | Identified exit to Mines 645 | -10/Materials | Learned Storage emergency access door positions 663 | -10/Materials | Learned Storage emergency access door positions 820 | -10/Materials | Lost 4 parts (1p2n1w) 855 | -10/Materials | Core integrity fell below 50% 1263 | -10/Materials | Entered another Materials area 1263 | -9/Materials | Evolved 2 slots: Propulsion x1, Utility x1 1264 | -9/Materials | Identified exit to Materials 1264 | -9/Materials | Identified exit to Mines 1264 | -9/Materials | Identified exit to Storage 1903 | -9/Materials | Discovered exit to Storage (range 5) 2168 | -9/Materials | Entered Storage 2608 | -9/Storage | Build established: Scavenger-Mutant 2682 | -9/Storage | Repaired Beam Cannon 2710 | -9/Storage | Repaired Beam Cannon 2819 | -9/Storage | Identified exit to Recycling 3004 | -9/Storage | Learned Materials stockpile data 3116 | -9/Storage | Learned location of 2 exits from Materials 3234 | -9/Storage | Build established: Mutant 3279 | -9/Storage | Loaded intel: 6 trap records 3323 | -9/Storage | Used back door to open Recycling access 3390 | -9/Storage | Entered Recycling 3391 | -9/Recycling | Identified exit to Scraptown 3794 | -9/Recycling | Scanned before Scraplab entrance 3955 | -9/Recycling | Discovered new exit (range 12) 4249 | -9/Recycling | Learned Storage emergency access door positions 4282 | -9/Recycling | Learned Storage trap positions 4304 | -9/Recycling | Learned 2 Materials zone layouts 4318 | -9/Recycling | Learned location of 2 exits from Materials 4319 | -9/Recycling | Learned location of 3 exits from Materials 4531 | -9/Recycling | Entered Scraplab 4547 | -9/Recycling | Entered Scraptown 4547 | -9/Scraptown | System corruption cleaned by C-Scrubber 4788 | -9/Scraptown | Heard Great Nut preacher, LISTEN AND RECITE! 5225 | -9/Scraptown | Discovered new exit (range 5) 5331 | -9/Scraptown | Visited Bundlers 5470 | -9/Scraptown | Visited Cave Peace 5495 | -9/Scraptown | Visited Cyclists 5513 | -9/Scraptown | Visited IN-MT5's Study 5542 | -9/Scraptown | Visited UFD Registry 5542 | -9/Scraptown | Registered with UFD as "Softtank" 5583 | -9/Scraptown | Visited Fellowship of the Rings 5659 | -9/Scraptown | Visited Scrap Suit Storage 5681 | -9/Scraptown | Visited LU-1G1's Boring Crew 5732 | -9/Scraptown | Visited Analyses Database 5857 | -9/Scraptown | Visited Infowarlord's Domain 5867 | -9/Scraptown | Found Exp. Sensor Array 5895 | -9/Scraptown | Visited DA-N13 Charitable Foundation 5902 | -9/Scraptown | Found DCF Scrap (29 items) 5942 | -9/Scraptown | Visited A0-MCA Data Center 5951 | -9/Scraptown | Given a B+ rating by A0-MCA 5978 | -9/Scraptown | Visited Cartography Club 6019 | -9/Scraptown | Visited Derelict Rescue Squad 6028 | -9/Scraptown | Found DRS Beacon 6069 | -9/Scraptown | Found Surveybot 17 Chip 6094 | -9/Scraptown | Learned location of Storage (-9) 6094 | -9/Scraptown | Learned location of Warlord (-5) 6094 | -9/Scraptown | Learned 16 Materials zone layouts 6094 | -9/Scraptown | Learned 8 Factory zone layouts 6094 | -9/Scraptown | Learned 8 Research zone layouts 6094 | -9/Scraptown | Learned 12 Factory zone layouts 6094 | -9/Scraptown | Learned 8 Lower Caves zone layouts 6094 | -9/Scraptown | Learned 12 Lower Caves zone layouts 6094 | -9/Scraptown | Learned 24 Proximity Caves zone layouts 6094 | -9/Scraptown | Learned location of 2 exits from Factory 6094 | -9/Scraptown | Learned location of 3 exits from Factory 6094 | -9/Scraptown | Learned location of 1 exit from Research 6114 | -9/Scraptown | Found Deep Structural Scanner 6247 | -9/Scraptown | Visited Scrapoid Research Area 6272 | -9/Scraptown | Visited Science Guys 6515 | -9/Scraptown | Met Optimus 6515 | -9/Scraptown | Accepted into 0bPrime 6915 | -9/Scraptown | Civil war broke out across Scraptown 6920 | -9/Scraptown | Found Thermal Lance 6986 | -9/Scraptown | Optimus destroyed in the chaos of civil war 7026 | -9/Scraptown | Discovered new exit (range 5) 7032 | -9/Scraptown | Entered Factory 7032 | -6/Factory | Evolved 6 slots: Power x1, Propulsion x1, Utility x4 7033 | -6/Factory | Identified exit to Lower Caves 7034 | -6/Factory | Identified exit to Factory 7035 | -6/Factory | Lost 9 allies 7845 | -6/Factory | Spotted B-75 Beast 8394 | -6/Factory | Cargo convoy interrupted 8486 | -6/Factory | Destroyed 7 combat bots 8517 | -6/Factory | Lost 10 parts (1p4n4u1w) 8564 | -6/Factory | Found Prototype Protection 8564 | -6/Factory | Identified Active Cooling Armor 8782 | -6/Factory | First assault squad dispatched 8824 | -6/Factory | Crushed by falling debris 8930 | -6/Factory | Entered Lower Caves 8931 | -6/Lower Caves | Identified exit to Lower Caves 9082 | -6/Lower Caves | Encountered a Warlord checkpoint 9150 | -6/Lower Caves | Attacked by a delusional Derelict stockpiling parts 9205 | -6/Lower Caves | Entered a destroyed Warlord outpost 9255 | -6/Lower Caves | Found Prototype Device 9295 | -6/Lower Caves | Identified Heart of Steel 9360 | -6/Lower Caves | Attracted the attention of an 0b10 checkpoint 9390 | -6/Lower Caves | Core integrity fell below 50% 9424 | -6/Lower Caves | Lost 3 parts (1p1n1w) 9800 | -6/Lower Caves | Entered another Lower Caves area 9976 | -6/Lower Caves | Discovered exit to Factory (range 14) 10068 | -6/Lower Caves | Learned Factory trap positions 10473 | -6/Lower Caves | Discovered new exit (range 14) 10536 | -6/Lower Caves | Learned location of 1 exit from Factory 10620 | -6/Lower Caves | Entered Data Miner 10623 | -6/Data Miner | Discovered new exit (range 6) 10645 | -6/Data Miner | Met Data Miner 10664 | -6/Data Miner | Learned location of Section 7 (-2) 10664 | -6/Data Miner | Acquired the access code to Warlord's prototype stash 10682 | -6/Data Miner | Received God Mode back door access code from Data Miner 10718 | -6/Data Miner | Entered Proximity Caves 10816 | -5/Proximity Caves | Spotter reported a threat 11092 | -5/Proximity Caves | Learned location of Armory (-4) 11233 | -5/Proximity Caves | Entered Factory 11233 | -5/Factory | Evolved 2 slots: Utility x2 11234 | -5/Factory | Identified exit to Factory 11235 | -5/Factory | Loaded intel: 124 trap records 11251 | -5/Factory | Discovered new exit (range 7) 11318 | -5/Factory | Watched by a mysterious "MATRIX" hacker. 11485 | -5/Factory | Lost 3 allies 11639 | -5/Factory | Fabricated T-07 Excavator? 12006 | -5/Factory | Lost 3 parts (1u2w) 12023 | -5/Factory | Heart of Steel transformed into Warbot 12636 | -5/Factory | Entered Upper Caves 12636 | -5/Upper Caves | Accompanied by 1 ally (Warbot) 12992 | -5/Upper Caves | Discovered new exit (range 12) 13029 | -5/Upper Caves | Entered another Upper Caves area 13029 | -5/Upper Caves | Accompanied by 1 ally (Warbot) 13443 | -5/Upper Caves | Learned 8 Factory zone layouts 13450 | -5/Upper Caves | Learned Factory trap positions 13466 | -5/Upper Caves | Attracted the attention of an 0b10 outpost 13498 | -5/Upper Caves | Destroyed 7 combat bots 13650 | -5/Upper Caves | Discovered new exit (range 11) 13702 | -5/Upper Caves | Entered Warlord 13702 | -5/Warlord | Accompanied by 1 ally 13741 | -5/Warlord | System corruption cleaned by Quarantine Array 14001 | -5/Warlord | Found Prototype Special Weapon 14001 | -5/Warlord | Identified RU-N14's Throwing Claymores v3 14006 | -5/Warlord | Found RU-N14's Throwing Claymores v3 14071 | -5/Warlord | Opened Warlord's prototype stash 14075 | -5/Warlord | Found Prototype Reactor 14075 | -5/Warlord | Identified Vortex Chain Reactor 14095 | -5/Warlord | Found Prototype Processor 14095 | -5/Warlord | Identified Exp. Armor Integrity Analyzer 14098 | -5/Warlord | Found Prototype Device 14098 | -5/Warlord | Identified Thermal Barrier 14104 | -5/Warlord | Found Prototype Device 14104 | -5/Warlord | Identified Exp. Phase Shifter 14167 | -5/Warlord | Found RU-N14's Throwing Claymores v3 14217 | -5/Warlord | Visited the Vortex Lab 14225 | -5/Warlord | Found Prototype Energy Cannon 14225 | -5/Warlord | Identified Vortex Driver 14229 | -5/Warlord | Found Vortex Driver 14233 | -5/Warlord | Found Prototype Energy Gun 14233 | -5/Warlord | Identified Vortex Shotgun 14234 | -5/Warlord | Warlord's base attacked by MAIN.C 14316 | -5/Warlord | Rebuked by Warlord 14584 | -5/Warlord | Warlord forces counterattacked 14618 | -5/Warlord | Spotted Executioner 14620 | -5/Warlord | Spotted Executioner 14623 | -5/Warlord | Destroyed Executioner 14626 | -5/Warlord | Destroyed Executioner 14663 | -5/Warlord | Lost 9 allies 14708 | -5/Warlord | Spotted Executioner 14750 | -5/Warlord | Lost 5 allies 14761 | -5/Warlord | Spotted Striker 14774 | -5/Warlord | Discovered new exit (range 8) 14774 | -5/Warlord | Spotted Executioner 14781 | -5/Warlord | Entered Proximity Caves 14810 | -4/Proximity Caves | Lost 9 allies 15148 | -4/Proximity Caves | Acquired the password to a Derelict Tinkerer's latest research 15220 | -4/Proximity Caves | Build established: Scavenger-Mutant 15225 | -4/Proximity Caves | Entered Factory 15225 | -4/Factory | Evolved 2 slots: Propulsion x1, Utility x1 15226 | -4/Factory | Identified exit to Research 15227 | -4/Factory | Identified exit to Extension 15227 | -4/Factory | Identified exit to Armory 15228 | -4/Factory | Loaded intel: 104 trap records 15261 | -4/Factory | Noticed UFD Elites at a Recycling Unit 15341 | -4/Factory | Lost 3 allies 15385 | -4/Factory | Discovered exit to Research (range 16) 15568 | -4/Factory | Lost 3 parts (3u) 15767 | -4/Factory | Fabricated Centrium Leg (x1) 15807 | -4/Factory | Garrison activated, responded to threat 15861 | -4/Factory | Spotted B-86 Titan 15892 | -4/Factory | Destroyed 11 combat bots 15904 | -4/Factory | Destroyed B-86 Titan 15915 | -4/Factory | Found Hvy. Reflective Plating 15976 | -4/Factory | Entered Armory 15977 | -4/Armory | Met VL-GR5, who suggested a friendly competition 16031 | -4/Armory | Lost 3 parts (2p1u) 16100 | -4/Armory | Found Prototype Launcher 16100 | -4/Armory | Identified Mni. Smartbomb Launcher 16123 | -4/Armory | Found Prototype Launcher 16123 | -4/Armory | Identified Tesla Bomb Launcher 16140 | -4/Armory | Lost the competition with VL-GR5 16193 | -4/Armory | Found Gamma Bomb Array 16195 | -4/Armory | Found Gamma Bomb Array 16226 | -4/Armory | First assault squad dispatched 16247 | -4/Armory | Incoming assault squad redirected 16508 | -4/Armory | Discovered exit to Research (range 14) 16526 | -4/Armory | Destroyed 8 combat bots 16535 | -4/Armory | Lost 3 parts (2p1u) 16593 | -4/Armory | Spotted B-86 Titan 16732 | -4/Armory | System corruption reached 10% 17065 | -4/Armory | System corruption reached 30% 17065 | -4/Armory | Entered Research 17065 | -3/Research | Evolved 2 slots: Utility x1, Weapon x1 17066 | -3/Research | Identified exit to Quarantine 17067 | -3/Research | Identified exit to Research 17157 | -3/Research | Build established: Scavenger-Assassin 17230 | -3/Research | Spotted B-86 Titan 17533 | -3/Research | Lost 4 parts (3u1w) 17788 | -3/Research | Incoming investigation squad redirected 17879 | -3/Research | Found Prototype Device 17879 | -3/Research | Identified Exp. Thermal Shield 17998 | -3/Research | System corruption reached 10% 18053 | -3/Research | Lost 7 parts (2p4u1w) 18069 | -3/Research | Destroyed 7 combat bots 18156 | -3/Research | Core integrity fell below 50% 18200 | -3/Research | Lost 9 parts (2p4n2u1w) 18303 | -3/Research | Entered Quarantine 18343 | -3/Quarantine | Found Alien Artifact 18358 | -3/Quarantine | Found Alien Artifact 18360 | -3/Quarantine | Found Alien Artifact 18367 | -3/Quarantine | Found Alien Artifact 18369 | -3/Quarantine | Found Alien Artifact 18371 | -3/Quarantine | Found Alien Artifact 18384 | -3/Quarantine | Spotted Alpha 7 18433 | -3/Quarantine | Destroyed Alpha 7 18450 | -3/Quarantine | Lost 3 parts (1p1u1w) 18495 | -3/Quarantine | Identified Dimensional Node Initializer (x2) 18495 | -3/Quarantine | Initialized slip node 18515 | -3/Quarantine | Found Alien Launcher 18515 | -3/Quarantine | Identified Sigix Terminator 18623 | -3/Quarantine | Identified Transdimensional Reconstructor (x3) 18623 | -3/Quarantine | Warped through subspace 18669 | -3/Quarantine | Found Alien Impact Weapon 18674 | -3/Quarantine | Discovered exit to Research (range 8) 18682 | -3/Quarantine | Cryocooling Duct disabled 18687 | -3/Quarantine | Cryocooling Duct disabled 18697 | -3/Quarantine | Ambient heat levels rising (+20) 18697 | -3/Quarantine | Non-combat units ordered to evacuate 18702 | -3/Quarantine | Ambient heat levels rising (+20) 18702 | -3/Quarantine | Combat units ordered to evacuate 18714 | -3/Quarantine | Found Alien Artifact 18722 | -3/Quarantine | Found Alien Artifact 18802 | -3/Quarantine | Quarantine Guard activated 18803 | -3/Quarantine | Core integrity fell below 20% 18803 | -3/Quarantine | Spotted Quarantine Guard 18803 | -3/Quarantine | Spotted Quarantine Guard 18803 | -3/Quarantine | Spotted Quarantine Guard 18803 | -3/Quarantine | Spotted Quarantine Guard 18803 | -3/Quarantine | Spotted Quarantine Guard 18803 | -3/Quarantine | Spotted Quarantine Guard 18803 | -3/Quarantine | Spotted Quarantine Guard 18803 | -3/Quarantine | Spotted Quarantine Guard 18803 | -3/Quarantine | Spotted Quarantine Guard 18803 | -3/Quarantine | Spotted Quarantine Guard 18803 | -3/Quarantine | Spotted Quarantine Guard 18803 | -3/Quarantine | Spotted Quarantine Guard 18803 | -3/Quarantine | Entered Research 18803 | -2/Research | Evolved 2 slots: Power x1, Utility x1 18833 | -2/Research | Lost 3 parts (1u2w) 18933 | -2/Research | Spotted B-90 Cyclops 19243 | -2/Research | Incoming investigation squad redirected 19265 | -2/Research | Warped through subspace 19265 | -2/Research | Spotted B-90 Cyclops 19266 | -2/Research | Warped through subspace 19311 | -2/Research | Fired Sigix Terminator 19326 | -2/Research | Spotted B-90 Cyclops 19332 | -2/Research | Destroyed 11 combat bots 19335 | -2/Research | Lost 16 parts (4p4n5u3w) 19338 | -2/Research | Destroyed B-90 Cyclops 19405 | -2/Research | Identified Terrabomb (x2) 19405 | -2/Research | Used Terrabomb 19406 | -2/Research | Core integrity fell below 50% 19467 | -2/Research | Lost 8 parts (3p4n1w) 19535 | -2/Research | Core integrity fell below 20% 19578 | -2/Research | Lost 9 parts (1p4n4u) 19603 | -2/Research | Found Prototype Device 19603 | -2/Research | Identified Exp. Actuator Array 19615 | -2/Research | Discovered new exit (range 12) 19640 | -2/Research | Identified exit to Access 19641 | -2/Research | Entered Access 19641 | -1/Access | Evolved 2 slots: Propulsion x2 19891 | -1/Access | First assault squad dispatched 19966 | -1/Access | Energy Cycler disabled 20300 | -1/Access | Build established: Hacker-Ninja 20439 | -1/Access | Identified exit to Surface 20478 | -1/Access | System corruption reached 10% 20517 | -1/Access | Lost 16 parts (2p6n5u3w) 20534 | *** | Escaped! Last Messages --------------- 20484_ Acquired 29 matter. 20486_ Adv. Surge Thruster destroyed. 20493_ Dropped Quantum Reactor. 20493_ Acquired Nova Cannon. 20494_ System corrupted: Heat flow error (+239). 20496_ Connecting with Terminal... 20500_ Connecting with Fabricator... >>Build Building Enh. Nova Cannon... ETC: 46 20508_ Acquired Unknown Flight Unit. 20508_ Identified Q-thruster. 20510_ System corrupted: Adv. Surge Thruster fused. 20511_ Acquired Q-thruster. 20521_ Connecting with Terminal... 20521_ The Access Shell folds into the floor. 20529_ System corrupted: Matter fused (-9). 20529_ ALERT: Suspicious intruders detected, dispatching Cutter reinforcements to area. Map ----- +----------------------------------------------------+ | ????????????????????????????????????? #????????? | | ?????????????????????????????????????# #????????? | | ?????????????????????????????????????# #????????? | | ?????????????????????????????????????# #????????? | | ?????????????????????????????????????# #????????? | | ?????????????????????????????????????# ????????? | | ?????????????????????????????????????# ????????? | | ?????????????????????????????????????# #????????? | | ????????????????????????#????????????# #????????? | | ????????????????????????# ??????????# #??####### | | ????????????????????????# ????????# #?? | | ????????????????????????# ??????# #? | | ????????????????????????# ????# #? " | | ????????????????????????# ??# # """ | | ????????????????????????# ! # # """ | | ????????????????????????# + + " | | ????????????????????????# # # | | ????????????????????????# ??# # | | ????????????????????????#########????# #?######## | | ?????????????????????????????###?????# #????????# | | ????????????????????########## ####### #????????# | | ????????????????????" #????????# | | ??????????????BB????" #????????# | | ??????????????BB????" #????????# | | ????????????????????" #????????# | | ????????????????????" "@ #????????# | | ????????????????????" "" #????????? | | ????????????????????" ########## | | ??????????????BB????" ## = | | ??????????????BB????" """ """ ## | | ????????????????????" """T""" ## | | ????????????????????########## ####### ## | | ?????????????????????????????###?????# ## | | ?????????????????????????????????????# ## | | ?????????????????????????????????????# ## | | ???????????????????????????########### ## ?? | | ???????????????????????????# ! + ## ???? | | ???????????????????????????# # ###+####?? | | ???????????????????????????# # #?? | | ???????????????????????????# # #?? | | ???????????????????????????# == ##### #?? | | ???????????????????????????# == #???# #?? | | ???????????????????????????# = #???# #?? | | ???????????????????????????# #???# #?? | | ???????????????????????????###########???# ### | | ?????????????????????????????????????????# | | ?????????????????????????????????????????# | | ?????????????????????????????????????????# ####### | | ?????????????????????????????????????????# #?????? | | ?????????????????????????????????????????# #?????? | +----------------------------------------------------+ Best States ------------- Heat Dissipation 129 Coolant Potential 80 Energy Generation 69 Energy Capacity 700 Matter Stores 300 Matter Capacity 300 Sight Range 22 Robot Scan Range 20 Terrain Scan Range 16 Terrain Scan Density 110 ECM Strength 2 Jamming Range 16 Cloak Strength 3 Additional Mass Support 9 Corruption Block 13 Armor Coverage 900 Resistance: TH 50 Core Shielding 30 Propulsion Shielding 66 Point Defense Rating 240 Melee Speed Boost 50 Phase Shifting 20 Evasion (%) 75 Targeting Accuracy 8 Target Analysis 8 Core Analysis 6 Recoil Reduction 4 Matter Filtering 50 Particle Charging 25 Offensive Hacking 24 Defensive Hacking 26 Trap Extractor Capacity 6 Item Schematics ----------------- Adv. Beam Cannon | -9/Storage | Hacked Hvy. Particle Cannon | -9/Recycling | Hacked Combat Drone Bay | -6/Data Miner | Free Lgt. Regenerative Plating | -6/Data Miner | Free Enh. Flexi-carbon Leg | -6/Data Miner | Free Exp. Heat Sink | -6/Data Miner | Free Kinetic Spear | -6/Data Miner | Free Imp. Antigrav System | -6/Data Miner | Free Adv. Hardlight Generator | -6/Data Miner | Free Phase Gun | -6/Data Miner | Free Linear Gravjet | -6/Data Miner | Free Adv. Thermal Shield | -6/Data Miner | Free Adv. Coolant Injector | -6/Data Miner | Free Adv. Point Defense System | -6/Data Miner | Free Adv. Energy Well | -3/Quarantine | Archive Imp. Diametric Drive | -3/Quarantine | Archive Proton Burst Cannon | -3/Quarantine | Archive Hvy. Antimatter Reactor | -3/Quarantine | Archive Robot Schematics ------------------ Y-64 Sentinel | -6/Data Miner | Free B-48 Gladiator | -6/Data Miner | Free R-10 Processor | -6/Data Miner | Free M-22 Extractor | -6/Data Miner | Free R-06 Scavenger | -3/Quarantine | Archive X-82 Rainmaker | -3/Quarantine | Archive Fabricated ------------ T-07 Excavator | x2 | -5/Factory | Preloaded Centrium Leg | x1 | -4/Factory | Preloaded Repaired ---------- Beam Cannon | 29% | -9/Storage Beam Cannon | 56% | -9/Storage Studied --------- Beam Cannon | -6/Factory | Hacked Phase Cannon | -6/Factory | Hacked Imp. Medium Treads | -6/Factory | Hacked Centrium Leg | -3/Research | Hacked Field Propulsion Array | -2/Research | Hacked Lgt. Particle Reactor | -2/Research | Hacked Alien Tech Used ----------------- Dimensional Node Initializer Sigix Terminator Transdimensional Reconstructor Terrabomb Achievements -------------- None Challenges ------------ None Game ------ Seed CloakingDamperDeflector Manual? 0 Play Time 03:23:19 Cumulative 488.2 hours Start 2026.06.20 @ 22:11:58 End 2026.06.21 @ 22:28:36 Sessions 3 Manual Loads 0 Difficulty Rogue Special Mode None Game No. 286 Rogue 286 Adventurer 0 Explorer 0 Win Type 0 Total 23 Types 12/1/4/2/1/0/1/2/0/0 Lore% 94 Gallery% 83 Achievement% 76 Wizard Run 0 Options --------- Layout 1 ASCII 0 Keyboard 0 Movement Mouse Keybinds 0 Fullscreen 2 Font 32/SmallcapsGlow Map View 50x35 Zoom Use 0% Tactical HUD 1 Map Filters NONE Filters NONE Steam 1 RUN: a086b1b1-1339-4536-b714-3654172e1def